fUSD/lending_fUSD_20240614
["ID","MTS","AMOUNT","RATE_DAILY","PERIOD"]
[329413660,1718326337550,-500.0,0.00025753,3]
[329413661,1718326337565,-500.0,0.00025753,3]
[329413662,1718326337576,-500.0,0.00025753,3]
[329413663,1718326337602,-500.0,0.00025753,3]
[329413664,1718326337622,-500.0,0.00025753,3]
[329413665,1718326337657,-500.0,0.00025753,3]
[329413666,1718326337684,-500.0,0.00025753,3]
[329413667,1718326337703,-500.0,0.00025753,3]
[329413668,1718326337717,-500.0,0.00025753,3]
[329413669,1718326337760,-500.0,0.00025753,3]
[329413670,1718326337781,-553.86,0.00025753,3]
[329413671,1718326337809,-500.0,0.00025753,3]
[329413672,1718326337825,-500.0,0.00025753,3]
[329413673,1718326337838,-622.13315405,0.00025753,3]
[329413674,1718326337849,-500.0,0.00025753,3]
[329413675,1718326337860,-419.24049132,0.00025753,3]
[329413676,1718326337874,-500.0,0.00025753,3]
[329413677,1718326337888,-500.0,0.00025753,3]
[329413678,1718326337916,-500.0,0.00025753,3]
[329413679,1718326337934,-500.0,0.00025753,3]
[329413680,1718326337963,-500.0,0.00025753,3]
[329413681,1718326337975,-500.0,0.00025753,3]
[329413682,1718326337993,-500.0,0.00025753,3]
[329413683,1718326338044,-500.0,0.00025753,3]
[329413684,1718326338072,-500.0,0.00025753,3]
[329413685,1718326338100,-500.0,0.00025753,3]
[329413686,1718326338125,-763.62,0.00025753,3]
[329413687,1718326338138,-500.0,0.00025753,3]
[329413688,1718326338151,-516.91098699,0.00025753,3]
[329413689,1718326338162,-500.0,0.00025753,3]
[329413690,1718326338175,-500.0,0.00025753,3]
[329413691,1718326338188,-500.0,0.00025753,3]
[329413692,1718326338201,-500.0,0.00025753,3]
[329413693,1718326338213,-500.0,0.00025753,3]
[329413694,1718326338232,-603.86378089,0.00025753,3]
[329413695,1718326338246,-500.0,0.00025753,3]
[329413696,1718326338260,-500.0,0.00025753,3]
[329413697,1718326338272,-500.0,0.00025753,3]
[329413698,1718326338290,-500.0,0.00025753,3]
[329413699,1718326338313,-500.0,0.00025753,3]
[329413700,1718326338383,-500.0,0.00025753,3]
[329413701,1718326338460,-500.0,0.00025753,3]
[329413702,1718326338502,-500.0,0.00025753,3]
[329413703,1718326338532,-500.0,0.00025753,3]
[329413704,1718326338557,-500.0,0.00025753,3]
[329413705,1718326338571,-500.0,0.00025753,3]
[329413706,1718326338582,-500.0,0.00025753,3]
[329413707,1718326338620,-640.07,0.00025753,3]
[329413708,1718326338658,-500.0,0.00025753,3]
[329413709,1718326338686,-500.0,0.00025753,3]
[329413710,1718326338722,-500.0,0.00025753,3]
[329413711,1718326338750,-500.0,0.00025753,3]
[329413712,1718326338776,-500.0,0.00025753,3]
[329413713,1718326338814,-200.2490987,0.00025753,3]
[329413714,1718326338828,-500.0,0.00025753,3]
[329413715,1718326338846,-500.0,0.00025753,3]
[329413716,1718326338876,-500.0,0.00025753,3]
[329413717,1718326338887,-500.0,0.00025753,3]
[329413718,1718326338903,-153.11,0.00025753,3]
[329413719,1718326338919,-641.17,0.00025753,3]
[329413720,1718326338934,-271.53,0.00025753,3]
[329413721,1718326338946,-500.0,0.00025753,3]
[329413722,1718326338988,-464.89,0.00025753,3]
[329413723,1718326339001,-500.0,0.00025753,3]
[329413724,1718326339018,-570.32,0.00025753,3]
[329413725,1718326339047,-500.0,0.00025753,3]
[329413726,1718326339069,-500.0,0.00025753,3]
[329413727,1718326339085,-500.0,0.00025753,3]
[329413728,1718326339111,-500.0,0.00025753,3]
[329413729,1718326339148,-500.0,0.00025753,3]
[329413730,1718326339163,-500.0,0.00025753,3]
[329413731,1718326339177,-500.0,0.00025753,3]
[329413732,1718326339221,-756.62,0.00025753,3]
[329413733,1718326339242,-500.0,0.00025753,3]
[329413734,1718326339266,-500.0,0.00025753,3]
[329413735,1718326339277,-500.0,0.00025753,3]
[329413736,1718326339292,-500.0,0.00025753,3]
[329413737,1718326339310,-500.0,0.00025753,3]
[329413738,1718326339333,-500.0,0.00025753,3]
[329413739,1718326339349,-500.0,0.00025753,3]
[329413740,1718326339373,-500.0,0.00025753,3]
[329413741,1718326339406,-188.01,0.00025753,3]
[329413742,1718326339432,-541.44,0.00025753,3]
[329413743,1718326339467,-500.0,0.00025753,3]
[329413744,1718326339489,-500.0,0.00025753,3]
[329413745,1718326339512,-500.0,0.00025753,3]
[329413746,1718326339539,-500.0,0.00025753,3]
[329413747,1718326339598,-500.0,0.00025753,3]
[329413748,1718326339659,-500.0,0.00025753,3]
[329413749,1718326339680,-500.0,0.00025753,3]
[329413750,1718326339728,-500.0,0.00025753,3]
[329413751,1718326339742,-531.1,0.00025753,3]
[329413752,1718326339757,-500.0,0.00025753,3]
[329413753,1718326339777,-500.0,0.00025753,3]
[329413754,1718326339803,-500.0,0.00025753,3]
[329413755,1718326339828,-500.0,0.00025753,3]
[329413756,1718326339921,-500.0,0.00025753,3]
[329413757,1718326339944,-500.0,0.00025753,3]
[329413758,1718326339967,-500.0,0.00025753,3]
[329413759,1718326340010,-500.0,0.00025753,3]
[329413760,1718326340032,-871.93,0.00025753,3]
[329413761,1718326340045,-500.0,0.00025753,3]
[329413762,1718326340058,-500.0,0.00025753,3]
[329413763,1718326340070,-811.04,0.00025753,3]
[329413764,1718326340082,-500.0,0.00025753,3]
[329413765,1718326340095,-1456.15,0.00025753,3]
[329413766,1718326340108,-431.54,0.00025753,3]
[329413767,1718326340126,-500.0,0.00025753,3]
[329413768,1718326340139,-747.44,0.00025753,3]
[329413769,1718326340190,-897.13,0.00025753,3]
[329413770,1718326340214,-500.0,0.00025753,3]
[329413771,1718326340230,-500.0,0.00025753,3]
[329413772,1718326340252,-500.0,0.00025753,3]
[329413773,1718326340275,-2475.47,0.00025753,3]
[329413774,1718326340287,-500.0,0.00025753,3]
[329413775,1718326340315,-500.0,0.00025753,3]
[329413776,1718326340330,-500.0,0.00025753,3]
[329413777,1718326340360,-500.0,0.00025753,3]
[329413778,1718326340390,-500.0,0.00025753,3]
[329413779,1718326340406,-500.0,0.00025753,3]
[329413780,1718326340418,-746.58,0.00025753,3]
[329413781,1718326340432,-2738.14,0.00025753,3]
[329413782,1718326340452,-4588.61,0.00025753,3]
[329413783,1718326340481,-500.0,0.00025753,3]
[329413784,1718326340497,-500.0,0.00025753,3]
[329413785,1718326340524,-745.58,0.00025753,3]
[329413786,1718326340541,-500.0,0.00025753,3]
[329413787,1718326340554,-1721.54,0.00025753,3]
[329413788,1718326340570,-3059.36,0.00025753,3]
[329413789,1718326340586,-500.0,0.00025753,3]
[329413790,1718326340599,-500.0,0.00025753,3]
[329413791,1718326340651,-500.0,0.00025753,3]
[329413792,1718326340671,-500.0,0.00025753,3]
[329413793,1718326340710,-500.0,0.00025753,3]
[329413794,1718326340722,-500.0,0.00025753,3]
[329413795,1718326340741,-500.0,0.00025753,3]
[329413796,1718326340758,-1034.72,0.00025753,3]
[329413797,1718326340782,-500.0,0.00025753,3]
[329413798,1718326340796,-3109.59,0.00025753,3]
[329413799,1718326340819,-960.45,0.00025753,3]
[329413800,1718326340831,-500.0,0.00025753,3]
[329413801,1718326340852,-4009.44,0.00025753,3]
[329413802,1718326340883,-500.0,0.00025753,3]
[329413803,1718326340899,-1373.05,0.00025753,3]
[329413804,1718326340919,-1310.27,0.00025753,3]
[329413805,1718326340939,-500.0,0.00025753,3]
[329413806,1718326340954,-500.0,0.00025753,3]
[329413807,1718326340966,-1256.73,0.00025753,3]
[329413808,1718326340979,-538.3,0.00025753,3]
[329413809,1718326340991,-514.99212445,0.00025753,3]
[329413810,1718326341010,-1048.7,0.00025753,3]
[329413811,1718326341037,-500.0,0.00025753,3]
[329413812,1718326341056,-1580.07,0.00025753,3]
[329413813,1718326341067,-909.71,0.00025753,3]
[329413814,1718326341107,-500.0,0.00025753,3]
[329413815,1718326341118,-500.0,0.00025753,3]
[329413816,1718326341136,-9157.77,0.00025753,3]
[329413817,1718326341160,-1186.73,0.00025753,3]
[329413818,1718326341171,-500.0,0.00025753,3]
[329413819,1718326341246,-500.0,0.00025753,3]
[329413820,1718326341264,-555.02,0.00025753,3]
[329413821,1718326341274,-500.0,0.00025753,3]
[329413822,1718326341294,-500.0,0.00025753,3]
[329413823,1718326341304,-1036.07,0.00025753,3]
[329413824,1718326341327,-577.82919417,0.00025753,3]
[329413825,1718326341339,-500.0,0.00025753,3]
[329413826,1718326341378,-5406.88,0.00025753,3]
[329413827,1718326341440,-500.0,0.00025753,3]
[329413828,1718326341460,-500.0,0.00025753,3]
[329413829,1718326341476,-1070.96,0.00025753,3]
[329413830,1718326341520,-2320.28,0.00025753,3]
[329413831,1718326341532,-500.0,0.00025753,3]
[329413832,1718326341552,-500.0,0.00025753,3]
[329413833,1718326341582,-736.73,0.00025753,3]
[329413834,1718326341595,-500.0,0.00025753,3]
[329413835,1718326341607,-901.93,0.00025753,3]
[329413836,1718326341640,-890.11,0.00025753,3]
[329413837,1718326341666,-1107.32,0.00025753,3]
[329413838,1718326341691,-500.0,0.00025753,3]
[329413839,1718326341704,-500.0,0.00025753,3]
[329413840,1718326341724,-1082.78,0.00025753,3]
[329413841,1718326341736,-500.0,0.00025753,3]
[329413842,1718326341747,-617.42,0.00025753,3]
[329413843,1718326341772,-500.0,0.00025753,3]
[329413844,1718326341784,-500.0,0.00025753,3]
[329413845,1718326341801,-500.0,0.00025753,3]
[329413846,1718326341812,-500.0,0.00025753,3]
[329413847,1718326341824,-500.0,0.00025753,3]
[329413848,1718326341852,-1129.3,0.00025753,3]
[329413849,1718326341868,-681.39,0.00025753,3]
[329413850,1718326341885,-1279.93,0.00025753,3]
[329413851,1718326341903,-500.0,0.00025753,3]
[329413852,1718326341917,-1545.42,0.00025753,3]
[329413853,1718326341933,-500.0,0.00025753,3]
[329413854,1718326341945,-1018.85,0.00025753,3]
[329413855,1718326341961,-1223.08,0.00025753,3]
[329413856,1718326341989,-691.09,0.00025753,3]
[329413857,1718326342002,-714.83,0.00025753,3]
[329413858,1718326342024,-500.0,0.00025753,3]
[329413859,1718326342035,-500.0,0.00025753,3]
[329413860,1718326342049,-778.93,0.00025753,3]
[329413861,1718326342059,-3531.42,0.00025753,3]
[329413862,1718326342079,-500.0,0.00025753,3]
[329413863,1718326342091,-681.15,0.00025753,3]
[329413864,1718326342106,-500.0,0.00025753,3]
[329413865,1718326342144,-1473.8,0.00025753,3]
[329413866,1718326342198,-788.91,0.00025753,3]
[329413867,1718326342233,-6475.63,0.00025753,3]
[329413868,1718326342271,-777.73,0.00025753,3]
[329413869,1718326342287,-500.0,0.00025753,3]
[329413870,1718326342315,-1577.29,0.00025753,3]
[329413871,1718326342333,-500.0,0.00025753,3]
[329413872,1718326342355,-1120.28,0.00025753,3]
[329413873,1718326342369,-1642.87,0.00025753,3]
[329413874,1718326342381,-2389.0,0.00025753,3]
[329413875,1718326342394,-1291.36,0.00025753,3]
[329413876,1718326342406,-500.0,0.00025753,3]
[329413877,1718326342417,-907.92,0.00025753,3]
[329413878,1718326342448,-500.0,0.00025753,3]
[329413879,1718326342459,-520.14,0.00025753,3]
[329413880,1718326342484,-12987.45,0.00025753,3]
[329413881,1718326342496,-500.0,0.00025753,3]
[329413882,1718326342530,-2319.99,0.00025753,3]
[329413883,1718326342552,-778.21,0.00025753,3]
[329413884,1718326342565,-611.86,0.00025753,3]
[329413885,1718326342597,-754.88,0.00025753,3]
[329413886,1718326342634,-500.0,0.00025753,3]
[329413887,1718326342647,-4074.81,0.00025753,3]
[329413888,1718326342663,-2845.3,0.00025753,3]
[329413889,1718326342675,-656.54,0.00025753,3]
[329413890,1718326342690,-500.0,0.00025753,3]
[329413891,1718326342713,-500.0,0.00025753,3]
[329413892,1718326342725,-1483.98,0.00025753,3]
[329413893,1718326342738,-1532.91,0.00025753,3]
[329413894,1718326342751,-2056.22,0.00025753,3]
[329413895,1718326342777,-576.83,0.00025753,3]
[329413896,1718326342804,-500.0,0.00025753,3]
[329413897,1718326342840,-599.45,0.00025753,3]
[329413898,1718326342863,-872.76,0.00025753,3]
[329413899,1718326342886,-1278.2,0.00025753,3]
[329413900,1718326342900,-500.0,0.00025753,3]
[329413901,1718326342911,-622.48,0.00025753,3]
[329413902,1718326342931,-1297.03,0.00025753,3]
[329413903,1718326342943,-500.0,0.00025753,3]
[329413904,1718326342954,-3101.77,0.00025753,3]
[329413905,1718326342965,-20832.05,0.00025753,3]
[329413906,1718326343043,-500.0,0.00025753,3]
[329413907,1718326343068,-643.49,0.00025753,3]
[329413908,1718326343081,-500.0,0.00025753,3]
[329413909,1718326343092,-500.0,0.00025753,3]
[329413910,1718326343104,-5842.58,0.00025753,3]
[329413911,1718326343124,-1263.39,0.00025753,3]
[329413912,1718326343140,-500.0,0.00025753,3]
[329413913,1718326343152,-2399.05,0.00025753,3]
[329413914,1718326343166,-1214.38,0.00025753,3]
[329413915,1718326343192,-2171.12,0.00025753,3]
[329413916,1718326343209,-500.0,0.00025753,3]
[329413917,1718326343222,-887.59,0.00025753,3]
[329413918,1718326343256,-2938.01,0.00025753,3]
[329413919,1718326343276,-881.63,0.00025753,3]
[329413920,1718326343302,-1881.22,0.00025753,3]
[329413921,1718326343337,-2087.76,0.00025753,3]
[329413922,1718326343347,-66.45463569,0.00025753,3]
[329413923,1718326343737,-286.21049042,0.00025753,3]
[329413924,1718326346700,-151.0,0.00024109,7]
[329413925,1718326346713,-154.256273,0.00024109,7]
[329413926,1718326346725,-154.256273,0.00024109,7]
[329413927,1718326346750,-154.256273,0.00024109,7]
[329413928,1718326346786,-500.0,0.00024109,2]
[329413929,1718326346830,-152.170032,0.00024109,7]
[329413930,1718326346842,-151.0,0.00024378,7]
[329413931,1718326346854,-154.256273,0.00024378,7]
[329413932,1718326346878,-180.662903,0.00024383,7]
[329413933,1718326346898,-151.0,0.00024383,7]
[329413934,1718326346919,-151.0,0.00024383,7]
[329413935,1718326346994,-270.19,0.00024383,2]
[329413936,1718326347023,-151.0,0.00024383,7]
[329413937,1718326347041,-154.256273,0.00024383,7]
[329413938,1718326347073,-6462.427607,0.00024657,7]
[329413939,1718326347098,-500.0,0.00025205,3]
[329413940,1718326347125,-164.04691285,0.00025479,3]
[329413944,1718327436171,-334.65,0.00015,2]
[329413945,1718327439759,-528.13062011,0.00015,2]
[329413946,1718327439773,-65.64684482,0.00017159,2]
[329413950,1718327444896,-428.22572364,0.00017159,2]
[329413951,1718327444930,-69.23147448,0.00017159,2]
[329413952,1718327444969,-287.97422134,0.00017259,2]
[329413953,1718327444989,-676.08366128,0.00017259,2]
[329413958,1718327452306,-564.47462442,0.00017259,2]
[329413959,1718327452318,-300.0,0.00017807,2]
[329413960,1718327452353,-420.0,0.00019433,2]
[329413961,1718327452364,-55.52535451,0.00019543,2]
[329413964,1718327454635,-95.47464549,0.00019543,2]
[329413965,1718327454646,-564.81,0.00019808,2]
[329413966,1718327454673,-151.0,0.00020589,2]
[329413967,1718327454683,-30693.299,0.00020739,2]
[329413968,1718327454694,-3813.017,0.00020739,2]
[329413969,1718327454720,-1194.0,0.00020739,2]
[329413970,1718327454731,-1573.0,0.00020739,2]
[329413971,1718327454760,-587.0,0.00021208,2]
[329413972,1718327454771,-199.77,0.0002155,2]
[329413973,1718327454792,-400.0,0.00021582,2]
[329413974,1718327454823,-151.0,0.00021634,2]
[329413975,1718327454873,-250.0,0.00021809,2]
[329413976,1718327454889,-424.44,0.00021828,2]
[329413977,1718327454916,-481.64,0.00021918,2]
[329413978,1718327454932,-250.0,0.00021918,2]
[329413979,1718327454952,-1000.0,0.00021919,2]
[329413980,1718327454972,-587.826679,0.00021934,2]
[329413981,1718327455005,-162.091519,0.00021934,2]
[329413982,1718327455016,-587.82668,0.00021934,2]
[329413983,1718327455048,-564.81,0.00022071,2]
[329413984,1718327455072,-587.826679,0.00022208,2]
[329413985,1718327455091,-587.82668,0.00022208,2]
[329413986,1718327455103,-587.826679,0.00022482,2]
[329413987,1718327455126,-587.82668,0.00022482,2]
[329413988,1718327455151,-151.0,0.0002268,2]
[329413989,1718327455172,-500.0,0.00022756,2]
[329413990,1718327455204,-587.826679,0.00022756,2]
[329413991,1718327455215,-587.82668,0.00022756,2]
[329413992,1718327455230,-563.10404295,0.0002293,3]
[329413993,1718327455246,-500.0,0.00023,2]
[329413994,1718327455264,-587.826679,0.0002303,2]
[329413995,1718327455278,-587.82668,0.0002303,2]
[329413996,1718327455298,-823.0,0.00023145,2]
[329413997,1718327455309,-446.16,0.0002345,2]
[329413998,1718327455324,-151.0,0.00023726,2]
[329413999,1718327455341,-200.0,0.000239,8]
[329414000,1718327455352,-250.48826689,0.00023986,2]
[329414001,1718327455363,-12727.93724878,0.00024,2]
[329414002,1718327455375,-1223.59793904,0.00024009,2]
[329414003,1718327455388,-696.09354285,0.00024009,2]
[329414004,1718327455464,-381.59400001,0.00024009,2]
[329414006,1718328436178,-250.47279182,0.00020729,2]
[329414009,1718328640081,-1075.33420105,0.00015547,2]
[329414010,1718328640127,-1327.93947076,0.00015547,2]
[329414011,1718328640143,-9276.43954225,0.00020729,2]
[329414012,1718328640157,-1484.1,0.00020729,2]
[329414013,1718328640191,-4486.78000005,0.00020729,2]
[329414014,1718328640245,-1324.45999986,0.00020729,2]
[329414015,1718328640261,-3319.89,0.00020729,2]
[329414016,1718328640288,-6339.84576999,0.00020729,2]
[329414017,1718328645424,-8776.15984623,0.00020729,2]
[329414018,1718328645447,-447.31440333,0.00020729,2]
[329414019,1718328645458,-1411.15685736,0.00020729,2]
[329414020,1718328645485,-729.27546915,0.00020729,2]
[329414021,1718328645505,-325.88720818,0.00020729,2]
[329414022,1718328645540,-186.42261086,0.00020738,2]
[329414023,1718328645565,-2511.0,0.000209,2]
[329414024,1718328645586,-636.0,0.000209,2]
[329414025,1718328645600,-2406.0,0.0002164,2]
[329414026,1718328645617,-208.602,0.0002164,2]
[329414027,1718328645636,-358.0,0.0002164,2]
[329414028,1718328645650,-186.917,0.0002164,2]
[329414029,1718328645670,-1267.533,0.0002164,2]
[329414030,1718328645698,-463.238,0.0002164,2]
[329414031,1718328645731,-811.329,0.0002164,2]
[329414032,1718328645744,-710.6739205,0.00021837,2]
[329414033,1718328645765,-189.106773,0.00021934,2]
[329414034,1718328645776,-653.525766,0.00021934,2]
[329414035,1718328645787,-151.53797,0.00021934,2]
[329414036,1718328645814,-179.980678,0.00021934,2]
[329414037,1718328645827,-1467.71677,0.00021934,2]
[329414038,1718328645839,-181.524154,0.00021934,2]
[329414039,1718328645860,-183.999681,0.00021934,2]
[329414040,1718328645894,-2577.202822,0.00021934,2]
[329414041,1718328645923,-173.976026,0.00021934,2]
[329414042,1718328645943,-747.204948,0.00021934,2]
[329414043,1718328645960,-192.137134,0.00021934,2]
[329414044,1718328645979,-176.693562,0.00021934,2]
[329414045,1718328646003,-250.0,0.00022126,2]
[329414046,1718328646028,-199.77,0.0002217,2]
[329414047,1718328646040,-653.525766,0.00022208,2]
[329414048,1718328646052,-151.53797,0.00022208,2]
[329414049,1718328646063,-1467.71677,0.00022208,2]
[329414050,1718328646074,-2577.202822,0.00022208,2]
[329414051,1718328646090,-747.204948,0.00022208,2]
[329414052,1718328646108,-150.0,0.00022296,2]
[329414053,1718328646132,-250.0,0.00022346,2]
[329414054,1718328646156,-401.36,0.00022446,2]
[329414055,1718328646168,-185.325002,0.00022472,2]
[329414056,1718328646184,-653.525766,0.00022482,2]
[329414057,1718328646198,-151.53797,0.00022482,2]
[329414058,1718328646215,-1467.71677,0.00022482,2]
[329414059,1718328646228,-2577.202822,0.00022482,2]
[329414060,1718328646240,-747.204948,0.00022482,2]
[329414061,1718328646253,-179.980678,0.00022482,2]
[329414062,1718328646272,-181.524154,0.00022482,2]
[329414063,1718328646284,-192.137134,0.00022482,2]
[329414064,1718328646295,-176.693562,0.00022482,2]
[329414065,1718328646306,-282.28,0.00022534,2]
[329414066,1718328646317,-151.0,0.00022707,2]
[329414067,1718328646340,-653.525766,0.00022756,2]
[329414068,1718328646351,-151.53797,0.00022756,2]
[329414069,1718328646373,-1467.71677,0.00022756,2]
[329414070,1718328646396,-2577.202822,0.00022756,2]
[329414071,1718328646407,-747.204948,0.00022756,2]
[329414072,1718328646433,-576.36,0.00022993,2]
[329414073,1718328646446,-500.0,0.00023,2]
[329414074,1718328646465,-653.525766,0.0002303,2]
[329414075,1718328646500,-151.53797,0.0002303,2]
[329414076,1718328646512,-1467.71677,0.0002303,2]
[329414077,1718328646523,-2577.202822,0.0002303,2]
[329414078,1718328646552,-747.204948,0.0002303,2]
[329414079,1718328646564,-189.106773,0.0002303,2]
[329414080,1718328646577,-183.999681,0.0002303,2]
[329414081,1718328646602,-173.976026,0.0002303,2]
[329414082,1718328646621,-179.980678,0.00023031,2]
[329414083,1718328646635,-181.524154,0.00023031,2]
[329414084,1718328646658,-176.693562,0.00023031,2]
[329414085,1718328646672,-192.137134,0.00023031,2]
[329414086,1718328646683,-676.92,0.00023375,2]
[329414087,1718328646698,-185.325002,0.00023595,2]
[329414088,1718328646714,-151.0,0.00023605,2]
[329414089,1718328646750,-151.0,0.00023749,2]
[329414090,1718328646763,-1000.0,0.00023987,2]
[329414091,1718328646814,-12730.91091576,0.00024,2]
[329414092,1718328646831,-2506.06253,0.00024009,2]
[329414093,1718328646842,-324.13611756,0.00024009,2]
[329414094,1718328646863,-6422.3125,0.00024009,2]
[329414095,1718328646899,-1000.0,0.00024009,2]
[329414096,1718328646910,-1532.0363,0.00024009,2]
[329414097,1718328646921,-3029.85195192,0.00024106,2]
[329414098,1718328646940,-155.0,0.00024107,4]
[329414099,1718328646952,-2159.89283519,0.00024107,2]
[329414100,1718328646964,-1509517.91977742,0.00024107,2]
[329414101,1718328646978,-408.88740247,0.00024107,2]
[329414102,1718328646991,-195.82725417,0.00024107,2]
[329414103,1718328647002,-822.21382915,0.00024107,2]
[329414104,1718328647014,-509.74251454,0.00024107,2]
[329414105,1718328647026,-42996.49503283,0.00024108,2]
[329414106,1718328647052,-500.0,0.00024109,2]
[329414107,1718328647063,-500.0,0.00024109,2]
[329414108,1718328647075,-500.0,0.00024109,2]
[329414109,1718328647094,-253.76791373,0.00024109,2]
[329414110,1718328647147,-500.0,0.00024109,2]
[329414111,1718328647160,-500.0,0.00024109,2]
[329414112,1718328647179,-500.0,0.00024109,2]
[329414113,1718328647195,-500.0,0.00024109,2]
[329414114,1718328647216,-500.0,0.00024109,2]
[329414115,1718328647234,-500.0,0.00024109,2]
[329414116,1718328647279,-500.0,0.00024109,2]
[329414117,1718328647291,-500.0,0.00024109,2]
[329414118,1718328647339,-500.0,0.00024109,2]
[329414119,1718328647352,-460.07054435,0.00024109,2]
[329414120,1718328647365,-500.0,0.00024109,2]
[329414121,1718328647376,-500.0,0.00024109,2]
[329414122,1718328647394,-500.0,0.00024109,2]
[329414123,1718328647405,-500.0,0.00024109,2]
[329414124,1718328647417,-500.0,0.00024109,2]
[329414125,1718328647434,-500.0,0.00024109,2]
[329414126,1718328647446,-500.0,0.00024109,2]
[329414127,1718328647459,-500.0,0.00024109,2]
[329414128,1718328647482,-500.0,0.00024109,2]
[329414129,1718328647521,-500.0,0.00024109,2]
[329414130,1718328647572,-500.0,0.00024109,2]
[329414131,1718328647603,-500.0,0.00024109,2]
[329414132,1718328647643,-500.0,0.00024109,2]
[329414133,1718328647665,-500.0,0.00024109,2]
[329414134,1718328647693,-500.0,0.00024109,2]
[329414135,1718328647731,-500.0,0.00024109,2]
[329414136,1718328647770,-500.0,0.00024109,2]
[329414137,1718328647803,-500.0,0.00024109,2]
[329414138,1718328647839,-500.0,0.00024109,2]
[329414139,1718328647860,-500.0,0.00024109,2]
[329414140,1718328647931,-500.0,0.00024109,2]
[329414141,1718328647953,-500.0,0.00024109,2]
[329414142,1718328647965,-500.0,0.00024109,2]
[329414143,1718328647978,-500.0,0.00024109,2]
[329414144,1718328647999,-500.0,0.00024109,2]
[329414145,1718328648013,-500.0,0.00024109,2]
[329414146,1718328648026,-457.03000927,0.00024109,2]
[329414147,1718328648048,-500.0,0.00024109,2]
[329414148,1718328648070,-500.0,0.00024109,2]
[329414149,1718328648083,-500.0,0.00024109,2]
[329414150,1718328648128,-500.0,0.00024109,2]
[329414151,1718328648164,-500.0,0.00024109,2]
[329414152,1718328648182,-500.0,0.00024109,2]
[329414153,1718328648195,-500.0,0.00024109,2]
[329414154,1718328648207,-500.0,0.00024109,2]
[329414155,1718328648224,-500.0,0.00024109,2]
[329414156,1718328648237,-500.0,0.00024109,2]
[329414157,1718328648258,-500.0,0.00024109,2]
[329414158,1718328648273,-500.0,0.00024109,2]
[329414159,1718328648292,-500.0,0.00024109,2]
[329414160,1718328648307,-500.0,0.00024109,2]
[329414161,1718328648319,-500.0,0.00024109,2]
[329414162,1718328648333,-500.0,0.00024109,2]
[329414163,1718328648356,-530.83422202,0.00024109,2]
[329414164,1718328648382,-500.0,0.00024109,2]
[329414165,1718328648395,-499.09358458,0.00024109,2]
[329414166,1718328648464,-500.0,0.00024109,2]
[329414167,1718328648523,-500.0,0.00024109,2]
[329414168,1718328648537,-500.0,0.00024109,2]
[329414169,1718328648554,-500.0,0.00024109,2]
[329414170,1718328648565,-500.0,0.00024109,2]
[329414171,1718328648577,-500.0,0.00024109,2]
[329414172,1718328648588,-500.0,0.00024109,2]
[329414173,1718328648604,-318.03310015,0.00024109,2]
[329414174,1718328648617,-500.0,0.00024109,2]